Workbook

Sheet Segment 1
A1: Aide à la planification des segments xBus | K1: =Version -> V2.00
A3: Projet:
A4: Segment:
A5: Client:
A6: Responsable:
A7: Notes: | G7: =IF(ISBLANK($B$10),"",VLOOKUP($B$10,Liste_Gateways_Komplett,2,FALSE)) -> 290.0 | H7: =IF(ISBLANK($B$10),"",VLOOKUP($B$10,Liste_Gateways_Komplett,3,FALSE)) -> 0.5 | I7: =IF(ISBLANK($B$10),"",VLOOKUP($B$10,Liste_Gateways_Komplett,4,FALSE)) -> 85
D8: Maximum | J8: Moyenne
A9: Quantité | B9: Modules | C9: Notes | D9: I [mA] | E9: Courrant [mA] | F9: Power [W] | G9: Charge du bus [%] | J9: Courrant [mA] | K9: Power [W]
A10: 1 | B10: xBG-B1-V | C10: Passerelle xBus | F10: =H7+SUM(F11:F33)*I7/100 -> 0.50 | K10: =H7+SUM(K11:K33)*I7/100 -> 0.50
D11: =IF(ISBLANK(B11),"",VLOOKUP(B11,Liste_Gesamt,2,FALSE)) ->  | E11: =IF(ISBLANK(B11),"",A11*D11) ->  | F11: =IF(ISBLANK(B11),"",E11*xBus_U/1000+VLOOKUP(B11,Liste_Gesamt,5,FALSE)) ->  | G11: =IF(ISBLANK(B11),"",100*E11/$G$7) ->  | J11: =IF(ISBLANK(B11),"",VLOOKUP(B11,Liste_Gesamt,4,FALSE) * A11) ->  | K11: =IF(ISBLANK(B11),"",J11*xBus_U/1000+VLOOKUP(B11,Liste_Gesamt,5,FALSE)) -> 
A34: =IF(G34>100,"Segment xBus surchargé! Déplacer des modules à un autre segment. Voir registre 'Informations'.","Plus d'informations sont à disposition au registre 'Informations'.") -> Plus d'informations sont à disposition au registre 'Informations'. | E34: =SUM(E11:E33) -> 0 mA | F34: =SUM(F10:F33) -> 0.5 W | G34: =SUM(G11:G33) -> 0 % | J34: =SUM(J11:J33) -> 0 mA | K34: =SUM(K10:K33) -> 0.5 W

Sheet Segment 2
A1: Aide à la planification des segments xBus | K1: =Version -> V2.00
A3: Projet:
A4: Segment:
A5: Client:
A6: Responsable:
A7: Notes: | G7: =IF(ISBLANK($B$10),"",VLOOKUP($B$10,Liste_Gateways_Komplett,2,FALSE)) -> 290.0 | H7: =IF(ISBLANK($B$10),"",VLOOKUP($B$10,Liste_Gateways_Komplett,3,FALSE)) -> 0.5 | I7: =IF(ISBLANK($B$10),"",VLOOKUP($B$10,Liste_Gateways_Komplett,4,FALSE)) -> 85
D8: Maximum | J8: Moyenne
A9: Quantité | B9: Modules | C9: Notes | D9: I [mA] | E9: Courrant [mA] | F9: Power [W] | G9: Charge du bus [%] | J9: Courrant [mA] | K9: Power [W]
A10: 1 | B10: xBG-B1-V | C10: Passerelle xBus | F10: =H7+SUM(F11:F33)*I7/100 -> 0.50 | K10: =H7+SUM(K11:K33)*I7/100 -> 0.50
D11: =IF(ISBLANK(B11),"",VLOOKUP(B11,Liste_Gesamt,2,FALSE)) ->  | E11: =IF(ISBLANK(B11),"",A11*D11) ->  | F11: =IF(ISBLANK(B11),"",E11*xBus_U/1000+VLOOKUP(B11,Liste_Gesamt,5,FALSE)) ->  | G11: =IF(ISBLANK(B11),"",100*E11/$G$7) ->  | J11: =IF(ISBLANK(B11),"",VLOOKUP(B11,Liste_Gesamt,4,FALSE) * A11) ->  | K11: =IF(ISBLANK(B11),"",J11*xBus_U/1000+VLOOKUP(B11,Liste_Gesamt,5,FALSE)) -> 
A34: =IF(G34>100,"Segment xBus surchargé! Déplacer des modules à un autre segment. Voir registre 'Informations'.","Plus d'informations sont à disposition au registre 'Informations'.") -> Plus d'informations sont à disposition au registre 'Informations'. | E34: =SUM(E11:E33) -> 0 mA | F34: =SUM(F10:F33) -> 0.5 W | G34: =SUM(G11:G33) -> 0 % | J34: =SUM(J11:J33) -> 0 mA | K34: =SUM(K10:K33) -> 0.5 W

Sheet Segment 3
A1: Aide à la planification des segments xBus | K1: =Version -> V2.00
A3: Projet:
A4: Segment:
A5: Client:
A6: Responsable:
A7: Notes: | G7: =IF(ISBLANK($B$10),"",VLOOKUP($B$10,Liste_Gateways_Komplett,2,FALSE)) -> 290.0 | H7: =IF(ISBLANK($B$10),"",VLOOKUP($B$10,Liste_Gateways_Komplett,3,FALSE)) -> 0.5 | I7: =IF(ISBLANK($B$10),"",VLOOKUP($B$10,Liste_Gateways_Komplett,4,FALSE)) -> 85
D8: Maximum | J8: Moyenne
A9: Quantité | B9: Modules | C9: Notes | D9: I [mA] | E9: Courrant [mA] | F9: Power [W] | G9: Charge du bus [%] | J9: Courrant [mA] | K9: Power [W]
A10: 1 | B10: xBG-B1-V | C10: Passerelle xBus | F10: =H7+SUM(F11:F33)*I7/100 -> 0.50 | K10: =H7+SUM(K11:K33)*I7/100 -> 0.50
D11: =IF(ISBLANK(B11),"",VLOOKUP(B11,Liste_Gesamt,2,FALSE)) ->  | E11: =IF(ISBLANK(B11),"",A11*D11) ->  | F11: =IF(ISBLANK(B11),"",E11*xBus_U/1000+VLOOKUP(B11,Liste_Gesamt,5,FALSE)) ->  | G11: =IF(ISBLANK(B11),"",100*E11/$G$7) ->  | J11: =IF(ISBLANK(B11),"",VLOOKUP(B11,Liste_Gesamt,4,FALSE) * A11) ->  | K11: =IF(ISBLANK(B11),"",J11*xBus_U/1000+VLOOKUP(B11,Liste_Gesamt,5,FALSE)) -> 
A34: =IF(G34>100,"Segment xBus surchargé! Déplacer des modules à un autre segment. Voir registre 'Informations'.","Plus d'informations sont à disposition au registre 'Informations'.") -> Plus d'informations sont à disposition au registre 'Informations'. | E34: =SUM(E11:E33) -> 0 mA | F34: =SUM(F10:F33) -> 0.5 W | G34: =SUM(G11:G33) -> 0 % | J34: =SUM(J11:J33) -> 0 mA | K34: =SUM(K10:K33) -> 0.5 W

Sheet Segment 4
A1: Aide à la planification des segments xBus | K1: =Version -> V2.00
A3: Projet:
A4: Segment:
A5: Client:
A6: Responsable:
A7: Notes: | G7: =IF(ISBLANK($B$10),"",VLOOKUP($B$10,Liste_Gateways_Komplett,2,FALSE)) -> 290.0 | H7: =IF(ISBLANK($B$10),"",VLOOKUP($B$10,Liste_Gateways_Komplett,3,FALSE)) -> 0.5 | I7: =IF(ISBLANK($B$10),"",VLOOKUP($B$10,Liste_Gateways_Komplett,4,FALSE)) -> 85
D8: Maximum | J8: Moyenne
A9: Quantité | B9: Modules | C9: Notes | D9: I [mA] | E9: Courrant [mA] | F9: Power [W] | G9: Charge du bus [%] | J9: Courrant [mA] | K9: Power [W]
A10: 1 | B10: xBG-B1-V | C10: Passerelle xBus | F10: =H7+SUM(F11:F33)*I7/100 -> 0.50 | K10: =H7+SUM(K11:K33)*I7/100 -> 0.50
D11: =IF(ISBLANK(B11),"",VLOOKUP(B11,Liste_Gesamt,2,FALSE)) ->  | E11: =IF(ISBLANK(B11),"",A11*D11) ->  | F11: =IF(ISBLANK(B11),"",E11*xBus_U/1000+VLOOKUP(B11,Liste_Gesamt,5,FALSE)) ->  | G11: =IF(ISBLANK(B11),"",100*E11/$G$7) ->  | J11: =IF(ISBLANK(B11),"",VLOOKUP(B11,Liste_Gesamt,4,FALSE) * A11) ->  | K11: =IF(ISBLANK(B11),"",J11*xBus_U/1000+VLOOKUP(B11,Liste_Gesamt,5,FALSE)) -> 
A34: =IF(G34>100,"Segment xBus surchargé! Déplacer des modules à un autre segment. Voir registre 'Informations'.","Plus d'informations sont à disposition au registre 'Informations'.") -> Plus d'informations sont à disposition au registre 'Informations'. | E34: =SUM(E11:E33) -> 0 mA | F34: =SUM(F10:F33) -> 0.5 W | G34: =SUM(G11:G33) -> 0 % | J34: =SUM(J11:J33) -> 0 mA | K34: =SUM(K10:K33) -> 0.5 W

Sheet Exemple
A1: Aide à la planification des segments xBus | K1: =Version -> V2.00
A3: Projet: | B3: maison xy
A4: Segment: | B4: rez
A5: Client: | B5: commune de z
A6: Responsable: | B6: abc électricité SA
A7: Notes: | G7: =IF(ISBLANK($B$10),"",VLOOKUP($B$10,Liste_Gateways_Komplett,2,FALSE)) -> 290.0 | H7: =IF(ISBLANK($B$10),"",VLOOKUP($B$10,Liste_Gateways_Komplett,3,FALSE)) -> 0.5 | I7: =IF(ISBLANK($B$10),"",VLOOKUP($B$10,Liste_Gateways_Komplett,4,FALSE)) -> 85
D8: Maximum | J8: Moyenne
A9: Quantité | B9: Modules | C9: Notes | D9: I [mA] | E9: Courrant [mA] | F9: Power [W] | G9: Charge du bus [%] | J9: Courrant [mA] | K9: Power [W]
A10: 1 | B10: xBG-B1-V | C10: Passerelle xBus | F10: =H7+SUM(F11:F33)*I7/100 -> 3.82 | K10: =H7+SUM(K11:K33)*I7/100 -> 1.84
A11: 10 | B11: xBS-K8TET-UP avec LED | D11: =IF(ISBLANK(B11),"",VLOOKUP(B11,Liste_Gesamt,2,FALSE)) -> 15.0 | E11: =IF(ISBLANK(B11),"",A11*D11) -> 150 | F11: =IF(ISBLANK(B11),"",E11*xBus_U/1000+VLOOKUP(B11,Liste_Gesamt,5,FALSE)) -> 2.25 | G11: =IF(ISBLANK(B11),"",100*E11/$G$7) -> 51.7 | J11: =IF(ISBLANK(B11),"",VLOOKUP(B11,Liste_Gesamt,4,FALSE) * A11) -> 70.0 | K11: =IF(ISBLANK(B11),"",J11*xBus_U/1000+VLOOKUP(B11,Liste_Gesamt,5,FALSE)) -> 1.05
A12: 20 | B12: xBS-K4TE-UP sans LED | D12: 3.0 | E12: 60 | F12: 0.9 | G12: 20.7 | J12: 10.0 | K12: 0.15
A13: 5 | B13: xBS-PRP360L-UP | D13: 10.0 | E13: 50 | F13: 0.75 | G13: 17.2 | J13: 25.0 | K13: 0.375
A34: =IF(G34>100,"Segment xBus surchargé! Déplacer des modules à un autre segment. Voir registre 'Informations'.","Plus d'informations sont à disposition au registre 'Informations'.") -> Plus d'informations sont à disposition au registre 'Informations'. | E34: =SUM(E11:E33) -> 260 mA | F34: =SUM(F10:F33) -> 7.7 W | G34: =SUM(G11:G33) -> 90 % | J34: =SUM(J11:J33) -> 105 mA | K34: =SUM(K10:K33) -> 3.4 W

Sheet Informations
A1: Informations sur le xBus | B1: =Version -> V2.00
A3: Principes de base:
A4: L'alimentation électrique et la transmission des données s'effectuent via deux fils de bus. Les coupleurs de bus compacts servent de coupleurs pour les différents signaux d'entrée physiques. Ils sont disponibles pour un maximum de huit signaux d'entrée numériques ou deux signaux d'entrée analogiques. Il existe une gamme complète de dispositifs avec des coupleurs intégrés permettant d'intégrer toutes les informations nécessaires dans le bâtiment, tels que les boutons de lampes et de volets, les détecteurs de température ambiante, les détecteurs de mouvement, les récepteurs de télécommande, etc. La ligne à 2 fils est exploitée de manière centralisée avec une basse tension (15VDC) à partir d'une alimentation électrique. Grâce à la très basse tension, l'installation est sûre et résistante au toucher et offre ainsi une protection personnelle active. Les appareils de terrain sont connectés au câble à 2 fils en fonction de la polarité. Tous les appareils de terrain sont protégés contre l'inversion de polarité. Une unité centrale peut fournir jusqu'à 10 segments xBus isolés électriquement les uns des autres par des passerelles xBus xBG-Bx-V. En outre, les segments xBus peuvent être découplés par des répéteurs. Le nombre maximum d'appareils de terrain par segment de xBus dépend du type et du nombre d'appareils de terrain. Pour l'attribution des adresses des appareils de terrain, le segment xBus auquel les appareils de terrain sont connectés n'a pas d'importance.
A5: Planification: | B5: Exemple structur:
A6: Grâce à cette aide à la planification, les différents segments xBus peuvent être affectés de manière fiable à des appareils de terrain, de sorte que la charge maximale du bus par segment ne soit pas dépassée. Il est recommandé de prévoir une réserve d'environ 10 à 20 % pour les modernisations ultérieures. Si la charge calculée du bus dans un segment dépasse 100 %, les appareils de terrain doivent être remplacés par un nouveau segment. Cela peut se faire en connectant une autre passerelle xBus xBG-Bx-V à la Bluebox ou en utilisant un répéteur xBR-H1N-V (voir l'exemple de structure). L'installation doit être réalisée avec du U72 1x4x0,8mm. Lorsque vous utilisez une paire de conducteurs (2x0,8 mm), la longueur maximale de câble par segment xBus est de 200 m.

Sheet Liste des modules
B1: Maximal | D1: Durchschnitt
A2: Modules | B2: I [mA] | C2: Pext [W] | D2: I [mA] | E2: Pext [W] | G2: xBus-Gateways | H2: Imax [mA] | I2: Pidle [W] | J2: n [%] | L2: Version: | N2: xBus-Spannung:
G3: xBG-B1-V | H3: 290.0 | I3: 0.5 | J3: 85.0 | L3: V2.00 | N3: 15.0
A4: ** BOUTONS POUSSOIRS EDIZIO ** | G4: xBG-B2-V | H4: 590.0 | I4: 0.5 | J4: 85.0
A5: xBS-K4TE-UP sans LED | B5: 3.0 | C5: 0.0 | D5: 0.5 | E5: 0.0
A6: xBS-K4TE-UP avec LED | B6: 7.0 | C6: 0.0 | D6: 3.0 | E6: 0.0
A7: xBS-K8TE-UP sans LED | B7: 4.0 | C7: 0.0 | D7: 2.0 | E7: 0.0
A8: xBS-K8TE-UP avec LED | B8: 15.0 | C8: 0.0 | D8: 7.0 | E8: 0.0
A9: xBS-K8TET-UP sans LED | B9: 4.0 | C9: 0.0 | D9: 2.0 | E9: 0.0
A10: xBS-K8TET-UP avec LED | B10: 15.0 | C10: 0.0 | D10: 7.0 | E10: 0.0
A12: ** CAPTEURS DIGITAL **
A13: xBS-K4DU-D | B13: 7.0 | C13: 0.0 | D13: 1.0 | E13: 0.0
A14: xBS-K2DN-D | B14: 7.0 | C14: 0.0 | D14: 3.0 | E14: 0.0
A15: xBS-K4DIO-D | B15: 8.0 | C15: 0.0 | D15: 3.0 | E15: 0.0
A17: ** CAPTEURS ANALOG **
A18: xBS-KMRT-D | B18: 10.0 | C18: 0.0 | D18: 2.0 | E18: 0.0
A19: xBS-MRTD-UP | B19: 10.0 | C19: 0.0 | D19: 4.0 | E19: 0.0
A20: xBS-MRHD-UP | B20: 10.0 | C20: 0.0 | D20: 4.0 | E20: 0.0
A21: xBS-MLUX-UP | B21: 5.0 | C21: 0.0 | D21: 1.0 | E21: 0.0
A22: xBS-K8UIF-V | B22: 2.0 | D22: 0.5
A24: ** DETECTEURS DE MOUVEMENT **
A25: xBS-KPIR-UP | B25: 5.0 | C25: 0.0 | D25: 2.5 | E25: 0.0
A26: xBS-BMA-AP | B26: 10.0 | C26: 0.0 | D26: 6.0 | E26: 0.0
A27: xBS-BMA2-AP | B27: 10.0 | C27: 0.0 | D27: 6.0 | E27: 0.0
A28: xBS-PCO-UP | B28: 20.0 | C28: 0.0 | D28: 6.0 | E28: 0.0 | F28: Aufstarten
A29: xBS-PEC-UP | B29: 20.0 | C29: 0.0 | D29: 9.0 | E29: 0.0 | F29: Aufstarten
A30: xBS-PRS360-UP | B30: 20.0 | C30: 0.0 | D30: 6.0 | E30: 0.0 | F30: Aufstarten
A31: xBS-PRP360-UP | B31: 20.0 | C31: 0.0 | D31: 6.0 | E31: 0.0 | F31: Aufstarten
A32: xBS-PRP360L-UP | B32: 10.0 | C32: 0.0 | D32: 5.0 | E32: 0.0
A34: ** ENOCEAN **
A35: xBG-EO1-D | B35: 19.0 | C35: 0.0 | D35: 16.0 | E35: 0.0
A36: xBG-EO2-D | B36: 19.0 | C36: 0.0 | D36: 16.0 | E36: 0.0
A38: ** ACTIONNEURS **
A39: xBA-S2-D | B39: 10.0 | C39: 0.0 | D39: 4.0 | E39: 0.0
A40: xBA-R12-D | B40: 10.0 | C40: 0.0 | D40: 3.0 | E40: 0.0
A41: xBA-S4-V | B41: 15.0 | C41: 0.0 | D41: 4.0 | E41: 0.0
A42: xBA-R22-V | B42: 13.0 | C42: 0.0 | D42: 3.0 | E42: 0.0
A43: xBA-R13-V | B43: 13.0 | C43: 0.0 | D43: 3.0 | E43: 0.0
A44: xBA-R22DC-V | B44: 13.0 | C44: 0.0 | D44: 3.0 | E44: 0.0
A45: xBA-R62-V | B45: 2.0 | D45: 0.5
A46: xBA-R43-V | B46: 2.0 | D46: 0.5
A47: xBA-D4-V | B47: 15.0 | D47: 10.0
A48: xBA-D2EVG-V | B48: 13.0 | C48: 0.0 | D48: 10.0 | E48: 0.0
A49: xBG-DA-V | B49: 2.0 | D49: 0.5
A51: ** REPEATER **
A52: xBR-H1N-G | B52: 10.0 | D52: 10.0
